[Event "Titled Tuesday Blitz November 22 Early 2022"]
[White "Akbas, Umut Ata"]
[Black "Jones, Gawain C B"]
[WhiteFideId "44572646"]
[BlackFideId "409561"]
[WhiteElo "2192"]
[BlackElo "2657"]
[Result "0-1"]
[Round "05"]
[TimeControl "180+1"]
[Date "2022.11.22"]
[WhiteClock "0:00:03"]
[BlackClock "0:00:03"]

1. d4 {[%clk 0:02:57]}  Nf6 {[%clk 0:02:59]} 2. c4 {[%clk 0:02:55]}  g6 {[%clk 0:02:59]} 3. Nc3 {[%clk 0:02:55]}  Bg7 {[%clk 0:02:59]} 4. Nf3 {[%clk 0:02:52]}  O-O {[%clk 0:02:59]} 5. Bg5 {[%clk 0:02:52]}  c5 {[%clk 0:02:57]} 6. e3 {[%clk 0:02:49]}  cxd4 {[%clk 0:02:56]} 7. exd4 {[%clk 0:02:49]}  d5 {[%clk 0:02:56]} 8. Bxf6 {[%clk 0:02:48]}  exf6 {[%clk 0:02:56]} 9. cxd5 {[%clk 0:02:48]}  Nd7 {[%clk 0:02:53]} 10. Be2 {[%clk 0:02:47]}  Nb6 {[%clk 0:02:53]} 11. Qb3 {[%clk 0:02:47]}  Qd6 {[%clk 0:02:47]} 12. O-O {[%clk 0:02:44]}  Rd8 {[%clk 0:02:47]} 13. Rfe1 {[%clk 0:02:35]}  Nxd5 {[%clk 0:02:41]} 14. Bc4 {[%clk 0:02:03]}  Nf4 {[%clk 0:02:24]} 15. Bxf7+ {[%clk 0:01:58]}  Kh8 {[%clk 0:02:24]} 16. Ne4 {[%clk 0:01:51]}  Qf8 {[%clk 0:02:10]} 17. Nc5 {[%clk 0:01:29]}  Bg4 {[%clk 0:02:01]} 18. Be6 {[%clk 0:01:19]}  Bxf3 {[%clk 0:01:29]} 19. Qxf3 {[%clk 0:01:17]}  Rxd4 {[%clk 0:01:29]} 20. Nb3 {[%clk 0:01:06]}  Nxe6 {[%clk 0:01:26]} 21. Rxe6 {[%clk 0:01:04]}  Rd7 {[%clk 0:01:26]} 22. Rae1 {[%clk 0:01:04]}  Rad8 {[%clk 0:01:17]} 23. g3 {[%clk 0:00:59]}  h5 {[%clk 0:01:08]} 24. R1e3 {[%clk 0:00:54]}  Kh7 {[%clk 0:01:05]} 25. Qe2 {[%clk 0:00:53]}  Qf7 {[%clk 0:00:52]} 26. Re7 {[%clk 0:00:51]}  Rxe7 {[%clk 0:00:42]} 27. Rxe7 {[%clk 0:00:51]}  Rd1+ {[%clk 0:00:42]} 28. Kg2 {[%clk 0:00:37]}  Qd5+ {[%clk 0:00:42]} 29. Qe4 {[%clk 0:00:37]}  Qxe4+ {[%clk 0:00:41]} 30. Rxe4 {[%clk 0:00:37]}  Bf8 {[%clk 0:00:29]} 31. Re8 {[%clk 0:00:27]}  Kg7 {[%clk 0:00:29]} 32. Rb8 {[%clk 0:00:28]}  Rd7 {[%clk 0:00:28]} 33. Na5 {[%clk 0:00:20]}  b6 {[%clk 0:00:25]} 34. Nc6 {[%clk 0:00:19]}  Bd6 {[%clk 0:00:13]} 35. Ra8 {[%clk 0:00:19]}  a5 {[%clk 0:00:13]} 36. Ra6 {[%clk 0:00:14]}  Bc5 {[%clk 0:00:12]} 37. Ra7 {[%clk 0:00:07]}  Rxa7 {[%clk 0:00:12]} 38. Nxa7 {[%clk 0:00:08]}  Kf7 {[%clk 0:00:12]} 39. Nb5 {[%clk 0:00:07]}  Ke6 {[%clk 0:00:12]} 40. Kf3 {[%clk 0:00:07]}  Kd5 {[%clk 0:00:12]} 41. Nc3+ {[%clk 0:00:07]}  Kc4 {[%clk 0:00:10]} 42. Ne4 {[%clk 0:00:07]}  Bd4 {[%clk 0:00:10]} 43. b3+ {[%clk 0:00:05]}  Kb4 {[%clk 0:00:10]} 44. Ke2 {[%clk 0:00:05]}  Ka3 {[%clk 0:00:10]} 45. Kd3 {[%clk 0:00:05]}  Ba1 {[%clk 0:00:10]} 46. f4 {[%clk 0:00:04]}  Kxa2 {[%clk 0:00:10]} 47. Kc2 {[%clk 0:00:05]}  Ka3 {[%clk 0:00:08]} 48. Nd6 {[%clk 0:00:03]}  Kb4 {[%clk 0:00:07]} 49. Nc8 {[%clk 0:00:04]}  Kc5 {[%clk 0:00:07]} 50. Ne7 {[%clk 0:00:04]}  g5 {[%clk 0:00:07]} 51. fxg5 {[%clk 0:00:04]}  fxg5 {[%clk 0:00:08]} 52. Nf5 {[%clk 0:00:04]}  b5 {[%clk 0:00:06]} 53. h3 {[%clk 0:00:04]}  Be5 {[%clk 0:00:05]} 54. g4 {[%clk 0:00:03]}  h4 {[%clk 0:00:04]} 55. Kd3 {[%clk 0:00:03]}  a4 {[%clk 0:00:04]} 56. bxa4 {[%clk 0:00:04]}  bxa4 {[%clk 0:00:05]} 57. Kc2 {[%clk 0:00:05]}  Kb4 {[%clk 0:00:05]} 58. Ne3 {[%clk 0:00:04]}  a3 {[%clk 0:00:05]} 59. Nd5+ {[%clk 0:00:05]}  Kc4 {[%clk 0:00:04]} 60. Ne3+ {[%clk 0:00:05]}  Kd4 {[%clk 0:00:03]} 61. Nf5+ {[%clk 0:00:06]}  Ke4 {[%clk 0:00:04]} 62. Kb3 {[%clk 0:00:06]}  Bb2 {[%clk 0:00:03]} 63. Nd6+ {[%clk 0:00:06]}  Kf4 {[%clk 0:00:03]} 64. Nf7 {[%clk 0:00:06]}  Bc1 {[%clk 0:00:03]} 65. Ka2 {[%clk 0:00:04]}  Kg3 {[%clk 0:00:03]} 66. Nxg5 {[%clk 0:00:03]}  Bxg5 {[%clk 0:00:03]} 0-1


[Site "https://www.chess.com"]

[Event "Titled Tuesday Blitz November 22 Early 2022"]
[White "Aloma Vidal, Robert"]
[Black "Ilkhomi, Jaloliddin"]
[WhiteFideId "2260409"]
[BlackFideId "14700948"]
[WhiteElo "2435"]
[BlackElo "2045"]
[Result "1/2-1/2"]
[Round "05"]
[TimeControl "180+1"]
[Date "2022.11.23"]
[WhiteClock "0:00:08"]
[BlackClock "0:00:07"]

1. e4 {[%clk 0:03:00]}  e6 {[%clk 0:02:59]} 2. d4 {[%clk 0:03:00]}  d5 {[%clk 0:02:57]} 3. e5 {[%clk 0:03:01]}  c5 {[%clk 0:02:57]} 4. c3 {[%clk 0:03:01]}  Qb6 {[%clk 0:02:56]} 5. Nf3 {[%clk 0:03:01]}  Bd7 {[%clk 0:02:57]} 6. Bd3 {[%clk 0:02:56]}  Bb5 {[%clk 0:02:52]} 7. dxc5 {[%clk 0:02:47]}  Bxc5 {[%clk 0:02:38]} 8. b4 {[%clk 0:02:47]}  Be7 {[%clk 0:02:36]} 9. a4 {[%clk 0:02:38]}  Bxd3 {[%clk 0:02:35]} 10. Qxd3 {[%clk 0:02:39]}  a5 {[%clk 0:02:24]} 11. Be3 {[%clk 0:02:32]}  Qc7 {[%clk 0:02:24]} 12. b5 {[%clk 0:02:26]}  Nd7 {[%clk 0:02:21]} 13. O-O {[%clk 0:02:21]}  Nc5 {[%clk 0:02:18]} 14. Qe2 {[%clk 0:02:06]}  Nh6 {[%clk 0:02:01]} 15. Bxh6 {[%clk 0:02:02]}  gxh6 {[%clk 0:02:02]} 16. Nbd2 {[%clk 0:02:01]}  Rg8 {[%clk 0:01:28]} 17. c4 {[%clk 0:01:58]}  Rd8 {[%clk 0:01:12]} 18. cxd5 {[%clk 0:01:45]}  Rxd5 {[%clk 0:01:13]} 19. Ne4 {[%clk 0:01:35]}  Nxe4 {[%clk 0:00:53]} 20. Qxe4 {[%clk 0:01:34]}  Rg6 {[%clk 0:00:53]} 21. Rac1 {[%clk 0:01:32]}  Qd7 {[%clk 0:00:52]} 22. b6 {[%clk 0:01:27]}  Bc5 {[%clk 0:00:43]} 23. h3 {[%clk 0:01:24]}  Kf8 {[%clk 0:00:20]} 24. Nh4 {[%clk 0:01:12]}  Rg7 {[%clk 0:00:14]} 25. Qf4 {[%clk 0:01:10]}  Qe7 {[%clk 0:00:04]} 26. Nf3 {[%clk 0:00:51]}  Kg8 {[%clk 0:00:02]} 27. Rc4 {[%clk 0:00:48]}  h5 {[%clk 0:00:02]} 28. Rfc1 {[%clk 0:00:48]}  Rg6 {[%clk 0:00:02]} 29. Qe4 {[%clk 0:00:39]}  Kg7 {[%clk 0:00:02]} 30. Qc2 {[%clk 0:00:39]}  Bxb6 {[%clk 0:00:02]} 31. Rc8 {[%clk 0:00:39]}  Bd8 {[%clk 0:00:02]} 32. Qe4 {[%clk 0:00:34]}  Qd7 {[%clk 0:00:02]} 33. Kh2 {[%clk 0:00:33]}  Rd1 {[%clk 0:00:02]} 34. Rxd1 {[%clk 0:00:24]}  Qxd1 {[%clk 0:00:02]} 35. Qe1 {[%clk 0:00:17]}  Qxe1 {[%clk 0:00:02]} 36. Nxe1 {[%clk 0:00:17]}  Bg5 {[%clk 0:00:03]} 37. Nd3 {[%clk 0:00:17]}  Bd2 {[%clk 0:00:03]} 38. Rc7 {[%clk 0:00:17]}  Bb4 {[%clk 0:00:04]} 39. Rxb7 {[%clk 0:00:17]}  Rg5 {[%clk 0:00:03]} 40. f4 {[%clk 0:00:17]}  Rf5 {[%clk 0:00:03]} 41. h4 {[%clk 0:00:16]}  Kg6 {[%clk 0:00:03]} 42. g3 {[%clk 0:00:17]}  f6 {[%clk 0:00:04]} 43. Kg2 {[%clk 0:00:16]}  fxe5 {[%clk 0:00:04]} 44. Nxe5+ {[%clk 0:00:17]}  Kh6 {[%clk 0:00:04]} 45. Kf3 {[%clk 0:00:16]}  Bc3 {[%clk 0:00:04]} 46. Nf7+ {[%clk 0:00:16]}  Kg6 {[%clk 0:00:04]} 47. Ng5 {[%clk 0:00:16]}  h6 {[%clk 0:00:04]} 48. Nxe6 {[%clk 0:00:16]}  Rd5 {[%clk 0:00:05]} 49. Ke4 {[%clk 0:00:16]}  Rd2 {[%clk 0:00:04]} 50. f5+ {[%clk 0:00:16]}  Kf6 {[%clk 0:00:05]} 51. Nf4 {[%clk 0:00:16]}  Rd4+ {[%clk 0:00:05]} 52. Ke3 {[%clk 0:00:16]}  Kxf5 {[%clk 0:00:06]} 53. Rb5+ {[%clk 0:00:16]}  Kg4 {[%clk 0:00:05]} 54. Rxa5 {[%clk 0:00:15]}  Bxa5 {[%clk 0:00:03]} 55. Kxd4 {[%clk 0:00:15]}  Kxg3 {[%clk 0:00:04]} 56. Nxh5+ {[%clk 0:00:14]}  Kxh4 {[%clk 0:00:05]} 57. Ng7 {[%clk 0:00:12]}  Kg5 {[%clk 0:00:05]} 58. Ne6+ {[%clk 0:00:10]}  Kg4 {[%clk 0:00:04]} 59. Ng7 {[%clk 0:00:09]}  Bd8 {[%clk 0:00:04]} 60. Kc5 {[%clk 0:00:08]}  h5 {[%clk 0:00:04]} 61. Nxh5 {[%clk 0:00:07]}  Kxh5 {[%clk 0:00:05]} 62. Kd6 {[%clk 0:00:07]}  Kg5 {[%clk 0:00:05]} 63. Kc6 {[%clk 0:00:07]}  Ba5 {[%clk 0:00:06]} 64. Kb5 {[%clk 0:00:08]}  Be1 {[%clk 0:00:07]} 65. a5 {[%clk 0:00:08]}  Bxa5 {[%clk 0:00:07]} 1/2-1/2


[Site "https://www.chess.com"]

[Event "Titled Tuesday Blitz November 22 Early 2022"]
[White "Bacrot, Etienne"]
[Black "Wagner, Dennis"]
[WhiteFideId "605506"]
[BlackFideId "24650684"]
[WhiteElo "2666"]
[BlackElo "2470"]
[Result "1-0"]
[Round "05"]
[TimeControl "180+1"]
[Date "2022.11.22"]
[WhiteClock "0:00:05"]
[BlackClock "0:00:04"]

1. e4 {[%clk 0:03:00]}  e5 {[%clk 0:02:59]} 2. Nf3 {[%clk 0:03:00]}  Nc6 {[%clk 0:02:58]} 3. Bb5 {[%clk 0:03:00]}  a6 {[%clk 0:02:57]} 4. Ba4 {[%clk 0:03:00]}  Nf6 {[%clk 0:02:56]} 5. O-O {[%clk 0:03:00]}  Be7 {[%clk 0:02:54]} 6. d3 {[%clk 0:03:00]}  b5 {[%clk 0:02:49]} 7. Bb3 {[%clk 0:03:00]}  d6 {[%clk 0:02:49]} 8. a3 {[%clk 0:02:57]}  O-O {[%clk 0:02:48]} 9. Nc3 {[%clk 0:02:57]}  Na5 {[%clk 0:02:48]} 10. Ba2 {[%clk 0:02:57]}  Be6 {[%clk 0:02:48]} 11. b4 {[%clk 0:02:57]}  Bxa2 {[%clk 0:02:49]} 12. Nxa2 {[%clk 0:02:57]}  Nc6 {[%clk 0:02:49]} 13. c4 {[%clk 0:02:55]}  h6 {[%clk 0:02:43]} 14. Nc3 {[%clk 0:02:54]}  Nd4 {[%clk 0:02:43]} 15. Be3 {[%clk 0:02:48]}  Nxf3+ {[%clk 0:02:40]} 16. Qxf3 {[%clk 0:02:49]}  c6 {[%clk 0:02:39]} 17. Rfd1 {[%clk 0:02:46]}  Qc8 {[%clk 0:02:39]} 18. Rac1 {[%clk 0:02:45]}  Qe6 {[%clk 0:02:38]} 19. Ne2 {[%clk 0:02:26]}  Rfc8 {[%clk 0:02:30]} 20. Ng3 {[%clk 0:02:18]}  Bf8 {[%clk 0:02:29]} 21. Nf5 {[%clk 0:02:17]}  Kh7 {[%clk 0:02:15]} 22. d4 {[%clk 0:02:05]}  bxc4 {[%clk 0:01:47]} 23. d5 {[%clk 0:01:32]}  cxd5 {[%clk 0:01:47]} 24. exd5 {[%clk 0:01:32]}  Qd7 {[%clk 0:01:48]} 25. Nxh6 {[%clk 0:01:32]}  gxh6 {[%clk 0:01:12]} 26. Qxf6 {[%clk 0:01:32]}  Bg7 {[%clk 0:01:12]} 27. Qh4 {[%clk 0:01:24]}  c3 {[%clk 0:01:10]} 28. Rd3 {[%clk 0:01:24]}  f5 {[%clk 0:00:47]} 29. Rdxc3 {[%clk 0:01:17]}  Rxc3 {[%clk 0:00:45]} 30. Rxc3 {[%clk 0:01:17]}  Rc8 {[%clk 0:00:39]} 31. Rxc8 {[%clk 0:00:50]}  Qxc8 {[%clk 0:00:40]} 32. g3 {[%clk 0:00:50]}  Qc2 {[%clk 0:00:35]} 33. Qh5 {[%clk 0:00:45]}  Qd3 {[%clk 0:00:24]} 34. a4 {[%clk 0:00:37]}  Qb1+ {[%clk 0:00:08]} 35. Kg2 {[%clk 0:00:37]}  Qd3 {[%clk 0:00:09]} 36. Qf3 {[%clk 0:00:21]}  Kg6 {[%clk 0:00:09]} 37. g4 {[%clk 0:00:22]}  f4 {[%clk 0:00:08]} 38. Bb6 {[%clk 0:00:20]}  Qc4 {[%clk 0:00:08]} 39. b5 {[%clk 0:00:13]}  Qxa4 {[%clk 0:00:07]} 40. bxa6 {[%clk 0:00:10]}  Qxa6 {[%clk 0:00:08]} 41. Qe4+ {[%clk 0:00:10]}  Kf7 {[%clk 0:00:07]} 42. Bc7 {[%clk 0:00:09]}  Bf6 {[%clk 0:00:03]} 43. Qf5 {[%clk 0:00:09]}  Kg7 {[%clk 0:00:02]} 44. Qd7+ {[%clk 0:00:08]}  Kg6 {[%clk 0:00:03]} 45. Qf5+ {[%clk 0:00:08]}  Kg7 {[%clk 0:00:03]} 46. Qd7+ {[%clk 0:00:07]}  Kg6 {[%clk 0:00:03]} 47. Bxd6 {[%clk 0:00:05]}  Qd3 {[%clk 0:00:04]} 48. Qe8+ {[%clk 0:00:05]}  Kg7 {[%clk 0:00:03]} 49. Qd7+ {[%clk 0:00:05]}  Kg6 {[%clk 0:00:04]} 50. Qe8+ {[%clk 0:00:03]}  Kg7 {[%clk 0:00:04]} 51. Bf8+ {[%clk 0:00:04]}  Kh7 {[%clk 0:00:04]} 52. Qf7+ {[%clk 0:00:04]}  Kh8 {[%clk 0:00:03]} 53. Qxf6+ {[%clk 0:00:04]}  Kh7 {[%clk 0:00:04]} 54. Qg7# {[%clk 0:00:05]} 1-0


[Site "https://www.chess.com"]

[Event "Titled Tuesday Blitz November 22 Early 2022"]
[White "Baskakov, Egor"]
[Black "Drygalov, Sergey"]
[WhiteFideId "24197866"]
[BlackFideId "24171743"]
[WhiteElo "2211"]
[BlackElo "2528"]
[Result "1/2-1/2"]
[Round "05"]
[TimeControl "180+1"]
[Date "2022.11.22"]
[WhiteClock "0:00:55"]
[BlackClock "0:00:20"]

1. e4 {[%clk 0:03:00]}  c5 {[%clk 0:02:59]} 2. Nf3 {[%clk 0:03:00]}  d6 {[%clk 0:02:59]} 3. d4 {[%clk 0:03:00]}  cxd4 {[%clk 0:03:00]} 4. Nxd4 {[%clk 0:03:01]}  Nf6 {[%clk 0:03:00]} 5. Nc3 {[%clk 0:03:02]}  a6 {[%clk 0:03:01]} 6. a4 {[%clk 0:03:01]}  e5 {[%clk 0:02:58]} 7. Nde2 {[%clk 0:03:01]}  Be7 {[%clk 0:02:57]} 8. g3 {[%clk 0:03:01]}  Be6 {[%clk 0:02:49]} 9. Bg2 {[%clk 0:03:02]}  Nc6 {[%clk 0:02:49]} 10. Nd5 {[%clk 0:03:02]}  O-O {[%clk 0:02:44]} 11. h3 {[%clk 0:03:01]}  Rc8 {[%clk 0:02:43]} 12. O-O {[%clk 0:03:01]}  Bxd5 {[%clk 0:02:42]} 13. exd5 {[%clk 0:03:02]}  Na5 {[%clk 0:02:42]} 14. b3 {[%clk 0:03:02]}  b6 {[%clk 0:02:09]} 15. Be3 {[%clk 0:02:58]}  Nb7 {[%clk 0:02:07]} 16. Qd3 {[%clk 0:02:55]}  a5 {[%clk 0:02:06]} 17. c4 {[%clk 0:02:56]}  Nc5 {[%clk 0:02:06]} 18. Qc2 {[%clk 0:02:54]}  Nfd7 {[%clk 0:02:06]} 19. Rad1 {[%clk 0:02:49]}  f5 {[%clk 0:02:06]} 20. f4 {[%clk 0:02:49]}  e4 {[%clk 0:01:59]} 21. Nd4 {[%clk 0:02:46]}  Qe8 {[%clk 0:01:45]} 22. g4 {[%clk 0:02:42]}  g6 {[%clk 0:01:29]} 23. Nc6 {[%clk 0:02:36]}  Bf6 {[%clk 0:01:27]} 24. Bd4 {[%clk 0:02:26]}  Nd3 {[%clk 0:01:26]} 25. Rxd3 {[%clk 0:02:16]}  exd3 {[%clk 0:01:26]} 26. Qxd3 {[%clk 0:02:17]}  Nc5 {[%clk 0:01:26]} 27. Qc3 {[%clk 0:02:16]}  Bxd4+ {[%clk 0:01:19]} 28. Nxd4 {[%clk 0:02:07]}  Qf7 {[%clk 0:01:19]} 29. gxf5 {[%clk 0:02:03]}  gxf5 {[%clk 0:01:12]} 30. Ne6 {[%clk 0:02:03]}  Qf6 {[%clk 0:01:05]} 31. Qg3+ {[%clk 0:02:01]}  Kh8 {[%clk 0:01:04]} 32. Nxf8 {[%clk 0:02:01]}  Rxf8 {[%clk 0:01:04]} 33. Kh1 {[%clk 0:01:48]}  Rg8 {[%clk 0:01:00]} 34. Qe3 {[%clk 0:01:48]}  Qb2 {[%clk 0:00:59]} 35. Rf2 {[%clk 0:01:45]}  Qb1+ {[%clk 0:00:43]} 36. Kh2 {[%clk 0:01:43]}  Qxb3 {[%clk 0:00:43]} 37. Qd4+ {[%clk 0:01:42]}  Rg7 {[%clk 0:00:44]} 38. Re2 {[%clk 0:01:36]}  h6 {[%clk 0:00:42]} 39. Qf6 {[%clk 0:01:27]}  Qg3+ {[%clk 0:00:38]} 40. Kh1 {[%clk 0:01:27]}  Qg6 {[%clk 0:00:32]} 41. Qd8+ {[%clk 0:01:27]}  Kh7 {[%clk 0:00:30]} 42. Qxb6 {[%clk 0:01:28]}  Qh5 {[%clk 0:00:24]} 43. Re1 {[%clk 0:01:16]}  Ne4 {[%clk 0:00:18]} 44. Rxe4 {[%clk 0:00:59]}  fxe4 {[%clk 0:00:19]} 45. Bxe4+ {[%clk 0:00:59]}  Kh8 {[%clk 0:00:19]} 46. Qd8+ {[%clk 0:00:56]}  Rg8 {[%clk 0:00:19]} 47. Qf6+ {[%clk 0:00:57]}  Rg7 {[%clk 0:00:20]} 48. Qf8+ {[%clk 0:00:54]}  Rg8 {[%clk 0:00:20]} 49. Qf6+ {[%clk 0:00:54]}  Rg7 {[%clk 0:00:20]} 50. Qd8+ {[%clk 0:00:54]}  Rg8 {[%clk 0:00:20]} 51. Qf6+ {[%clk 0:00:55]} 1/2-1/2


[Site "https://www.chess.com"]

[Event "Titled Tuesday Blitz November 22 Early 2022"]
[White "Berezin, Viktor"]
[Black "Sariego Figueredo, Wilfredo"]
[WhiteFideId "14107872"]
[BlackFideId "3500080"]
[WhiteElo "2310"]
[BlackElo "2309"]
[Result "1-0"]
[Round "05"]
[TimeControl "180+1"]
[Date "2022.11.23"]
[WhiteClock "0:01:34"]
[BlackClock "0:00:04"]

1. d4 {[%clk 0:02:58]}  d5 {[%clk 0:03:00]} 2. c4 {[%clk 0:02:58]}  c6 {[%clk 0:02:59]} 3. Nf3 {[%clk 0:02:57]}  Nf6 {[%clk 0:02:59]} 4. g3 {[%clk 0:02:57]}  a6 {[%clk 0:02:59]} 5. Bg2 {[%clk 0:02:58]}  dxc4 {[%clk 0:03:00]} 6. O-O {[%clk 0:02:58]}  e6 {[%clk 0:02:56]} 7. a4 {[%clk 0:02:59]}  Bb4 {[%clk 0:02:53]} 8. Qc2 {[%clk 0:02:58]}  O-O {[%clk 0:02:48]} 9. Qxc4 {[%clk 0:02:57]}  Qe7 {[%clk 0:02:41]} 10. Nc3 {[%clk 0:02:52]}  Nbd7 {[%clk 0:02:35]} 11. e4 {[%clk 0:02:51]}  Bxc3 {[%clk 0:02:34]} 12. bxc3 {[%clk 0:02:47]}  Nxe4 {[%clk 0:02:31]} 13. Re1 {[%clk 0:02:48]}  Nef6 {[%clk 0:02:23]} 14. Ba3 {[%clk 0:02:47]}  c5 {[%clk 0:02:19]} 15. dxc5 {[%clk 0:02:47]}  Qd8 {[%clk 0:02:01]} 16. c6 {[%clk 0:02:45]}  Nb6 {[%clk 0:01:59]} 17. Qb3 {[%clk 0:02:38]}  Re8 {[%clk 0:01:58]} 18. Ne5 {[%clk 0:02:32]}  Qc7 {[%clk 0:01:34]} 19. cxb7 {[%clk 0:02:28]}  Bxb7 {[%clk 0:01:35]} 20. Bxb7 {[%clk 0:02:28]}  Qxb7 {[%clk 0:01:35]} 21. a5 {[%clk 0:02:28]}  Qd5 {[%clk 0:01:20]} 22. Qxb6 {[%clk 0:02:25]}  Reb8 {[%clk 0:01:03]} 23. Qd4 {[%clk 0:02:22]}  Qb3 {[%clk 0:00:55]} 24. Bb4 {[%clk 0:02:15]}  Nd5 {[%clk 0:00:38]} 25. Rab1 {[%clk 0:02:09]}  Qc2 {[%clk 0:00:29]} 26. Qd3 {[%clk 0:02:06]}  Qa2 {[%clk 0:00:18]} 27. Ra1 {[%clk 0:02:01]}  Nxb4 {[%clk 0:00:17]} 28. cxb4 {[%clk 0:01:58]}  Qb2 {[%clk 0:00:16]} 29. Rab1 {[%clk 0:01:58]}  Qa2 {[%clk 0:00:15]} 30. Qf3 {[%clk 0:01:56]}  f6 {[%clk 0:00:12]} 31. Nc6 {[%clk 0:01:55]}  Rb5 {[%clk 0:00:10]} 32. Ne7+ {[%clk 0:01:53]}  Kf7 {[%clk 0:00:11]} 33. Qxa8 {[%clk 0:01:51]}  Kxe7 {[%clk 0:00:11]} 34. Qxa6 {[%clk 0:01:49]}  Rf5 {[%clk 0:00:11]} 35. Qe2 {[%clk 0:01:47]}  Qd5 {[%clk 0:00:10]} 36. a6 {[%clk 0:01:44]}  Re5 {[%clk 0:00:09]} 37. Qc2 {[%clk 0:01:38]}  Rh5 {[%clk 0:00:07]} 38. Qc5+ {[%clk 0:01:33]}  Qxc5 {[%clk 0:00:04]} 39. bxc5 {[%clk 0:01:34]} 1-0


[Site "https://www.chess.com"]

[Event "Titled Tuesday Blitz November 22 Early 2022"]
[White "Bilych, Olexiy"]
[Black "Goryachkina, Aleksandra"]
[WhiteFideId "14156504"]
[BlackFideId "4147103"]
[WhiteElo "2320"]
[BlackElo "2484"]
[Result "1-0"]
[Round "05"]
[TimeControl "180+1"]
[Date "2022.11.22"]
[WhiteClock "0:00:47"]
[BlackClock "0:00:01"]

1. d4 {[%clk 0:03:00]}  Nf6 {[%clk 0:02:58]} 2. c4 {[%clk 0:03:01]}  e6 {[%clk 0:02:58]} 3. Nf3 {[%clk 0:03:01]}  d5 {[%clk 0:02:58]} 4. g3 {[%clk 0:03:01]}  dxc4 {[%clk 0:02:54]} 5. Bg2 {[%clk 0:03:00]}  Nbd7 {[%clk 0:02:54]} 6. O-O {[%clk 0:02:51]}  c6 {[%clk 0:02:51]} 7. a4 {[%clk 0:02:41]}  Be7 {[%clk 0:02:42]} 8. Nbd2 {[%clk 0:02:35]}  b5 {[%clk 0:02:35]} 9. axb5 {[%clk 0:02:23]}  cxb5 {[%clk 0:02:34]} 10. Ne5 {[%clk 0:02:24]}  Nxe5 {[%clk 0:02:32]} 11. Bxa8 {[%clk 0:02:20]}  Qxd4 {[%clk 0:02:30]} 12. Nf3 {[%clk 0:02:16]}  Nxf3+ {[%clk 0:02:22]} 13. Bxf3 {[%clk 0:02:17]}  Qb6 {[%clk 0:01:55]} 14. Be3 {[%clk 0:02:09]}  Bc5 {[%clk 0:01:51]} 15. Bxc5 {[%clk 0:02:08]}  Qxc5 {[%clk 0:01:51]} 16. Qd2 {[%clk 0:02:05]}  O-O {[%clk 0:01:48]} 17. Qa5 {[%clk 0:02:04]}  a6 {[%clk 0:01:45]} 18. Rfc1 {[%clk 0:01:59]}  e5 {[%clk 0:01:28]} 19. b3 {[%clk 0:01:56]}  e4 {[%clk 0:01:19]} 20. Bg2 {[%clk 0:01:45]}  Ng4 {[%clk 0:01:18]} 21. Qe1 {[%clk 0:01:30]}  e3 {[%clk 0:01:05]} 22. f3 {[%clk 0:01:28]}  Ne5 {[%clk 0:01:03]} 23. f4 {[%clk 0:01:27]}  Ng4 {[%clk 0:00:57]} 24. bxc4 {[%clk 0:01:23]}  bxc4 {[%clk 0:00:51]} 25. Qa5 {[%clk 0:01:21]}  Qd4 {[%clk 0:00:31]} 26. Qc3 {[%clk 0:01:19]}  Qd6 {[%clk 0:00:18]} 27. Qxc4 {[%clk 0:01:12]}  h5 {[%clk 0:00:16]} 28. Be4 {[%clk 0:01:09]}  Be6 {[%clk 0:00:09]} 29. Qc5 {[%clk 0:01:07]}  Qd7 {[%clk 0:00:07]} 30. f5 {[%clk 0:00:53]}  Nf6 {[%clk 0:00:02]} 31. fxe6 {[%clk 0:00:52]}  Qd2 {[%clk 0:00:01]} 32. e7 {[%clk 0:00:47]} 1-0


[Site "https://www.chess.com"]

[Event "Titled Tuesday Blitz November 22 Early 2022"]
[White "Bristy, Mukherjee"]
[Black "Aldokhin, Ivan"]
[WhiteFideId "25077325"]
[BlackFideId "24115720"]
[WhiteElo "1715"]
[BlackElo "2313"]
[Result "0-1"]
[Round "05"]
[TimeControl "180+1"]
[Date "2022.11.23"]
[WhiteClock "0:00:07"]
[BlackClock "0:00:09"]

1. d4 {[%clk 0:03:00]}  Nf6 {[%clk 0:02:53]} 2. Bg5 {[%clk 0:03:00]}  e6 {[%clk 0:02:52]} 3. Nd2 {[%clk 0:02:59]}  h6 {[%clk 0:02:52]} 4. Bh4 {[%clk 0:02:59]}  Nc6 {[%clk 0:02:46]} 5. c3 {[%clk 0:02:55]}  d6 {[%clk 0:02:45]} 6. e4 {[%clk 0:02:53]}  g5 {[%clk 0:02:43]} 7. Bg3 {[%clk 0:02:51]}  Bg7 {[%clk 0:02:44]} 8. h4 {[%clk 0:02:41]}  Qe7 {[%clk 0:02:44]} 9. hxg5 {[%clk 0:02:41]}  hxg5 {[%clk 0:02:45]} 10. Rxh8+ {[%clk 0:02:41]}  Bxh8 {[%clk 0:02:46]} 11. Bb5 {[%clk 0:02:39]}  Bd7 {[%clk 0:02:45]} 12. Nh3 {[%clk 0:02:37]}  g4 {[%clk 0:02:23]} 13. Nf4 {[%clk 0:02:37]}  e5 {[%clk 0:02:20]} 14. dxe5 {[%clk 0:02:35]}  Nxe5 {[%clk 0:02:14]} 15. Bxd7+ {[%clk 0:02:34]}  Qxd7 {[%clk 0:02:07]} 16. Qe2 {[%clk 0:02:26]}  Qa4 {[%clk 0:01:53]} 17. b3 {[%clk 0:02:15]}  Qc6 {[%clk 0:01:36]} 18. Rc1 {[%clk 0:02:03]}  O-O-O {[%clk 0:01:32]} 19. Kf1 {[%clk 0:01:54]}  Bg7 {[%clk 0:01:16]} 20. Nd3 {[%clk 0:01:46]}  Nxd3 {[%clk 0:01:00]} 21. Qxd3 {[%clk 0:01:47]}  Re8 {[%clk 0:01:01]} 22. Re1 {[%clk 0:01:40]}  Nh5 {[%clk 0:01:01]} 23. Qc4 {[%clk 0:01:38]}  Nxg3+ {[%clk 0:00:58]} 24. fxg3 {[%clk 0:01:34]}  Qxc4+ {[%clk 0:00:38]} 25. Nxc4 {[%clk 0:01:35]}  Bxc3 {[%clk 0:00:38]} 26. Rc1 {[%clk 0:00:43]}  Be5 {[%clk 0:00:37]} 27. Kf2 {[%clk 0:00:43]}  Bd4+ {[%clk 0:00:31]} 28. Kf1 {[%clk 0:00:41]}  Kd7 {[%clk 0:00:30]} 29. Re1 {[%clk 0:00:34]}  b5 {[%clk 0:00:27]} 30. Na3 {[%clk 0:00:31]}  a6 {[%clk 0:00:21]} 31. Nc2 {[%clk 0:00:27]}  Bb6 {[%clk 0:00:15]} 32. Re2 {[%clk 0:00:27]}  Rh8 {[%clk 0:00:15]} 33. Ke1 {[%clk 0:00:24]}  Rh1+ {[%clk 0:00:12]} 34. Kd2 {[%clk 0:00:25]}  Ke6 {[%clk 0:00:09]} 35. Kd3 {[%clk 0:00:24]}  Rd1+ {[%clk 0:00:08]} 36. Kc3 {[%clk 0:00:23]}  Ke5 {[%clk 0:00:08]} 37. Kb2 {[%clk 0:00:21]}  Rf1 {[%clk 0:00:08]} 38. Nb4 {[%clk 0:00:21]}  Bd4+ {[%clk 0:00:05]} 39. Kc2 {[%clk 0:00:20]}  Bc5 {[%clk 0:00:06]} 40. Nd3+ {[%clk 0:00:19]}  Kd4 {[%clk 0:00:06]} 41. Nf4 {[%clk 0:00:19]}  Rh1 {[%clk 0:00:04]} 42. Nd5 {[%clk 0:00:14]}  c6 {[%clk 0:00:03]} 43. Nc3 {[%clk 0:00:13]}  Ke5 {[%clk 0:00:03]} 44. Nd1 {[%clk 0:00:13]}  Bd4 {[%clk 0:00:03]} 45. a3 {[%clk 0:00:10]}  a5 {[%clk 0:00:04]} 46. a4 {[%clk 0:00:10]}  Rf1 {[%clk 0:00:04]} 47. axb5 {[%clk 0:00:10]}  cxb5 {[%clk 0:00:05]} 48. Nb2 {[%clk 0:00:06]}  Bxb2 {[%clk 0:00:05]} 49. Kxb2 {[%clk 0:00:06]}  Rd1 {[%clk 0:00:05]} 50. Kc2 {[%clk 0:00:06]}  Rd4 {[%clk 0:00:06]} 51. Re1 {[%clk 0:00:06]}  Rxe4 {[%clk 0:00:07]} 52. Ra1 {[%clk 0:00:07]}  Re2+ {[%clk 0:00:07]} 53. Kd3 {[%clk 0:00:07]}  Rxg2 {[%clk 0:00:07]} 54. Rxa5 {[%clk 0:00:07]}  Rxg3+ {[%clk 0:00:07]} 55. Kc2 {[%clk 0:00:07]}  d5 {[%clk 0:00:08]} 56. Rxb5 {[%clk 0:00:08]}  f5 {[%clk 0:00:08]} 57. Rb8 {[%clk 0:00:08]}  f4 {[%clk 0:00:09]} 58. Re8+ {[%clk 0:00:08]}  Kd4 {[%clk 0:00:09]} 59. Rf8 {[%clk 0:00:08]}  Rg2+ {[%clk 0:00:09]} 60. Kb1 {[%clk 0:00:07]}  Rf2 {[%clk 0:00:09]} 61. b4 {[%clk 0:00:06]}  g3 {[%clk 0:00:10]} 62. Rg8 {[%clk 0:00:07]}  g2 {[%clk 0:00:10]} 63. b5 {[%clk 0:00:07]}  Rf1+ {[%clk 0:00:09]} 0-1


[Site "https://www.chess.com"]